[Event "Early-Titled-Tuesday-Blitz-March-05-2024"]
[Site "Chess.com"]
[Date "2024.03.05"]
[Round "9"]
[White "GoValya"]
[Black "goodnigth"]
[Result "1-0"]
[WhiteElo "2238"]
[BlackElo "1968"]
[TimeControl "180+1"]
[EndTime "9:47:04 PST"]
[Termination "GoValya won on time"]

1. d4 {[%clk 0:02:56.6]} 1... Nf6 {[%clk 0:02:56.2]} 2. Nf3 {[%clk 0:02:57.2]}
2... g6 {[%clk 0:02:55.8]} 3. g3 {[%clk 0:02:57.9]} 3... Bg7 {[%clk 0:02:55]} 4.
Bg2 {[%clk 0:02:58.6]} 4... c5 {[%clk 0:02:36.5]} 5. O-O {[%clk 0:02:58.3]} 5...
cxd4 {[%clk 0:02:34.1]} 6. Nxd4 {[%clk 0:02:59.2]} 6... h5 {[%clk 0:02:25.3]} 7.
h4 {[%clk 0:02:58.6]} 7... Nc6 {[%clk 0:02:20.8]} 8. c4 {[%clk 0:02:59]} 8...
Ng4 {[%clk 0:02:16.6]} 9. Nxc6 {[%clk 0:02:45.6]} 9... dxc6 {[%clk 0:02:17.5]}
10. Qxd8+ {[%clk 0:02:43.3]} 10... Kxd8 {[%clk 0:02:16.6]} 11. Rd1+ {[%clk
0:02:43.9]} 11... Kc7 {[%clk 0:01:50.2]} 12. Nc3 {[%clk 0:02:39.7]} 12... Bf5
{[%clk 0:00:55.5]} 13. f3 {[%clk 0:02:19.3]} 13... Nh6 {[%clk 0:00:54.6]} 14. e4
{[%clk 0:02:10.9]} 14... Bd7 {[%clk 0:00:49.1]} 15. Be3 {[%clk 0:02:09.6]} 15...
Rhd8 {[%clk 0:00:46.8]} 16. Rac1 {[%clk 0:01:59.9]} 16... Be6 {[%clk 0:00:39.7]}
17. Nd5+ {[%clk 0:01:21.8]} 17... Bxd5 {[%clk 0:00:32]} 18. cxd5 {[%clk
0:01:21.9]} 18... Ng8 {[%clk 0:00:29]} 19. Bf4+ {[%clk 0:01:05.5]} 19... Kb6
{[%clk 0:00:25.2]} 20. b3 {[%clk 0:00:59.6]} 20... Bb2 {[%clk 0:00:17.4]} 21.
Rc2 {[%clk 0:00:59.1]} 21... Ba3 {[%clk 0:00:17]} 22. Re1 {[%clk 0:00:47]} 22...
Rac8 {[%clk 0:00:12.3]} 23. Be3+ {[%clk 0:00:41.3]} 23... c5 {[%clk 0:00:09.2]}
24. Rc4 {[%clk 0:00:39.2]} 24... a5 {[%clk 0:00:06.4]} 25. f4 {[%clk 0:00:35.4]}
25... e6 {[%clk 0:00:05.9]} 26. Re2 {[%clk 0:00:31.1]} 26... Ne7 {[%clk
0:00:03.6]} 27. Ra4 {[%clk 0:00:29.1]} 27... Bb4 {[%clk 0:00:02.7]} 28. a3
{[%clk 0:00:29.1]} 28... Bc3 {[%clk 0:00:02.6]} 29. Rc4 {[%clk 0:00:28]} 29...
Bd4 {[%clk 0:00:02.2]} 30. Bxd4 {[%clk 0:00:25.7]} 30... cxd4 {[%clk 0:00:03.1]}
31. Rxd4 {[%clk 0:00:25.3]} 31... Rc3 {[%clk 0:00:04]} 32. Red2 {[%clk
0:00:21.7]} 32... Rxg3 {[%clk 0:00:03.1]} 33. d6 {[%clk 0:00:20.5]} 33... Nc6
{[%clk 0:00:02.5]} 34. Rc4 {[%clk 0:00:18.1]} 34... Rg4 {[%clk 0:00:02.5]} 35.
e5 {[%clk 0:00:17]} 35... Rxh4 {[%clk 0:00:03.1]} 36. Kf2 {[%clk 0:00:17.3]}
36... Rg4 {[%clk 0:00:02.5]} 37. Kf3 {[%clk 0:00:17.4]} 37... g5 {[%clk
0:00:01.2]} 38. b4 {[%clk 0:00:16.3]} 38... Rxf4+ {[%clk 0:00:01.4]} 39. Rxf4
{[%clk 0:00:16]} 39... gxf4 {[%clk 0:00:02.3]} 40. Kxf4 {[%clk 0:00:16.6]} 40...
axb4 {[%clk 0:00:02.2]} 41. axb4 {[%clk 0:00:17]} 41... Nxb4 {[%clk 0:00:02.7]}
42. Rb2 {[%clk 0:00:16.8]} 42... Kc5 {[%clk 0:00:03.2]} 43. Rb3 {[%clk
0:00:16.6]} 43... b6 {[%clk 0:00:03.3]} 44. Rc3+ {[%clk 0:00:16.4]} 44... Kd4
{[%clk 0:00:02.1]} 45. Rc7 {[%clk 0:00:15.8]} 45... Nd5+ {[%clk 0:00:02.2]} 46.
Bxd5 {[%clk 0:00:15.9]} 46... Kxd5 {[%clk 0:00:02.6]} 47. Rxf7 {[%clk
0:00:15.9]} 47... b5 {[%clk 0:00:02.9]} 48. Rb7 {[%clk 0:00:15.4]} 48... Kc4
{[%clk 0:00:02.9]} 49. Rc7+ {[%clk 0:00:15.4]} 49... Kd5 {[%clk 0:00:01.8]} 50.
d7 {[%clk 0:00:14.4]} 50... b4 {[%clk 0:00:01.1]} 51. Rb7 {[%clk 0:00:13.9]} 1-0

[Event "Early-Titled-Tuesday-Blitz-March-05-2024"]
[Site "Chess.com"]
[Date "2024.03.05"]
[Round "9"]
[White "Mariia89"]
[Black "yonaltimur"]
[Result "0-1"]
[WhiteElo "2261"]
[BlackElo "2356"]
[TimeControl "180+1"]
[EndTime "9:47:05 PST"]
[Termination "yonaltimur won on time"]

1. d4 {[%clk 0:03:00]} 1... d5 {[%clk 0:03:00.3]} 2. c4 {[%clk 0:03:00.1]} 2...
e6 {[%clk 0:03:00.7]} 3. Nc3 {[%clk 0:03:00.2]} 3... a6 {[%clk 0:03:00.8]} 4.
Nf3 {[%clk 0:03:00]} 4... dxc4 {[%clk 0:03:01.1]} 5. e4 {[%clk 0:02:55.7]} 5...
b5 {[%clk 0:03:01.1]} 6. e5 {[%clk 0:02:40.6]} 6... c5 {[%clk 0:02:56.2]} 7. Bg5
{[%clk 0:02:23.2]} 7... Qa5 {[%clk 0:02:38.5]} 8. d5 {[%clk 0:02:09.2]} 8...
exd5 {[%clk 0:02:08.9]} 9. Qxd5 {[%clk 0:01:56.2]} 9... Ra7 {[%clk 0:02:08.1]}
10. b4 {[%clk 0:01:02]} 10... cxb4 {[%clk 0:01:42.9]} 11. Ne4 {[%clk 0:00:59.3]}
11... Be6 {[%clk 0:01:19]} 12. Qd4 {[%clk 0:00:42.8]} 12... Rd7 {[%clk
0:01:15.2]} 13. Nd6+ {[%clk 0:00:42.6]} 13... Bxd6 {[%clk 0:01:13.8]} 14. exd6
{[%clk 0:00:42.8]} 14... f6 {[%clk 0:01:11.7]} 15. Qe4 {[%clk 0:00:31.2]} 15...
Kf7 {[%clk 0:01:08.5]} 16. Nd4 {[%clk 0:00:28.2]} 16... Rxd6 {[%clk 0:01:02.2]}
17. Bf4 {[%clk 0:00:27.6]} 17... b3+ {[%clk 0:00:51.3]} 18. Bd2 {[%clk 0:00:24]}
18... Qb6 {[%clk 0:00:50]} 19. Nf3 {[%clk 0:00:20.3]} 19... Bd5 {[%clk 0:00:42]}
20. Qf4 {[%clk 0:00:13]} 20... Bxf3 {[%clk 0:00:19.3]} 21. gxf3 {[%clk
0:00:12.3]} 21... Ne7 {[%clk 0:00:14]} 22. Be2 {[%clk 0:00:12.2]} 22... b2
{[%clk 0:00:12.8]} 23. Rb1 {[%clk 0:00:11.7]} 23... Nd5 {[%clk 0:00:13.2]} 24.
Qg4 {[%clk 0:00:09]} 24... c3 {[%clk 0:00:13]} 25. Bh6 {[%clk 0:00:05.1]} 25...
gxh6 {[%clk 0:00:11.7]} 26. Rg1 {[%clk 0:00:05.5]} 26... Rf8 {[%clk 0:00:09.2]}
27. Qg7+ {[%clk 0:00:05.5]} 27... Ke8 {[%clk 0:00:09.4]} 28. Bd3 {[%clk
0:00:02.9]} 28... Re6+ {[%clk 0:00:08.7]} 29. Kf1 {[%clk 0:00:02.8]} 29... Re7
{[%clk 0:00:08.7]} 30. Qxh6 {[%clk 0:00:02.7]} 30... Nd7 {[%clk 0:00:05.5]} 31.
Qh5+ {[%clk 0:00:03.3]} 31... Kd8 {[%clk 0:00:03.8]} 32. Qxd5 {[%clk 0:00:04]}
32... Qc5 {[%clk 0:00:03.8]} 33. Qa8+ {[%clk 0:00:04.1]} 33... Qc8 {[%clk
0:00:03.6]} 34. Qxa6 {[%clk 0:00:04.8]} 34... Qxa6 {[%clk 0:00:03.4]} 35. Kg2
{[%clk 0:00:03.8]} 35... Qd6 {[%clk 0:00:03.6]} 36. Bc2 {[%clk 0:00:04.2]} 36...
Rg7+ {[%clk 0:00:04]} 37. Kh1 {[%clk 0:00:04.2]} 37... Rxg1+ {[%clk 0:00:04.9]}
38. Kxg1 {[%clk 0:00:04.9]} 38... Qd2 {[%clk 0:00:05.3]} 39. Be4 {[%clk
0:00:05]} 39... c2 {[%clk 0:00:05.8]} 40. Bxc2 {[%clk 0:00:05.1]} 40... Qxc2
{[%clk 0:00:06.7]} 41. Rf1 {[%clk 0:00:06]} 41... Qc1 {[%clk 0:00:07]} 42. Rxc1
{[%clk 0:00:06.3]} 42... bxc1=Q+ {[%clk 0:00:07.3]} 43. Kg2 {[%clk 0:00:07.2]}
43... Rg8+ {[%clk 0:00:08]} 0-1

[Event "Early-Titled-Tuesday-Blitz-March-05-2024"]
[Site "Chess.com"]
[Date "2024.03.05"]
[Round "9"]
[White "Bekkedahl"]
[Black "DKmirl"]
[Result "1/2-1/2"]
[WhiteElo "2197"]
[BlackElo "2320"]
[TimeControl "180+1"]
[EndTime "9:47:07 PST"]
[Termination "Game drawn by repetition"]

1. e4 {[%clk 0:03:00.9]} 1... d5 {[%clk 0:02:57.7]} 2. exd5 {[%clk 0:03:00.5]}
2... Qxd5 {[%clk 0:02:58.6]} 3. Nc3 {[%clk 0:02:59.8]} 3... Qe5+ {[%clk
0:02:58.8]} 4. Be2 {[%clk 0:02:58.1]} 4... Bg4 {[%clk 0:02:58.4]} 5. d4 {[%clk
0:02:55.4]} 5... Qe6 {[%clk 0:02:51.5]} 6. d5 {[%clk 0:02:52.1]} 6... Qe5 {[%clk
0:02:49.1]} 7. Nf3 {[%clk 0:02:50.7]} 7... Bxf3 {[%clk 0:02:48.8]} 8. gxf3
{[%clk 0:02:51]} 8... Nf6 {[%clk 0:02:42.6]} 9. f4 {[%clk 0:02:49.3]} 9... Qd6
{[%clk 0:02:35]} 10. Be3 {[%clk 0:02:33.1]} 10... Na6 {[%clk 0:02:30.5]} 11. Qd4
{[%clk 0:02:21.1]} 11... O-O-O {[%clk 0:02:07.4]} 12. Qxa7 {[%clk 0:02:13.2]}
12... Nxd5 {[%clk 0:02:05.2]} 13. Bxa6 {[%clk 0:01:58.5]} 13... Qxa6 {[%clk
0:01:56.1]} 14. Qxa6 {[%clk 0:01:54.7]} 14... bxa6 {[%clk 0:01:56.5]} 15. Nxd5
{[%clk 0:01:48.5]} 15... Rxd5 {[%clk 0:01:57.1]} 16. Ke2 {[%clk 0:01:49.2]}
16... e6 {[%clk 0:01:56.5]} 17. Rhd1 {[%clk 0:01:49.1]} 17... Rxd1 {[%clk
0:01:46.3]} 18. Rxd1 {[%clk 0:01:48.6]} 18... Be7 {[%clk 0:01:46.8]} 19. c4
{[%clk 0:01:41.1]} 19... Rd8 {[%clk 0:01:36.3]} 20. Rb1 {[%clk 0:01:24.2]} 20...
a5 {[%clk 0:01:30.9]} 21. a3 {[%clk 0:01:21]} 21... c5 {[%clk 0:01:20.9]} 22.
Rd1 {[%clk 0:01:13.4]} 22... Rxd1 {[%clk 0:01:16.6]} 23. Kxd1 {[%clk 0:01:14.3]}
23... Kc7 {[%clk 0:01:15.4]} 24. Kc2 {[%clk 0:01:10.1]} 24... Kc6 {[%clk
0:01:14.5]} 25. Kb3 {[%clk 0:01:04.8]} 25... Bf6 {[%clk 0:01:03.1]} 26. Bd2
{[%clk 0:00:53.5]} 26... Kb6 {[%clk 0:00:57.5]} 27. Bc1 {[%clk 0:00:53.9]} 27...
Bd4 {[%clk 0:00:55.4]} 28. f3 {[%clk 0:00:52.3]} 28... h5 {[%clk 0:00:53.2]} 29.
h3 {[%clk 0:00:45.2]} 29... f6 {[%clk 0:00:35.7]} 30. Kc2 {[%clk 0:00:39.7]}
30... g6 {[%clk 0:00:26.1]} 31. b3 {[%clk 0:00:38.3]} 31... Bf2 {[%clk
0:00:15.6]} 32. Kd3 {[%clk 0:00:33.7]} 32... a4 {[%clk 0:00:09.8]} 33. b4 {[%clk
0:00:19.4]} 33... Bg1 {[%clk 0:00:06.4]} 34. b5 {[%clk 0:00:16.3]} 34... Ka5
{[%clk 0:00:03.9]} 35. Be3 {[%clk 0:00:12.4]} 35... Bxe3 {[%clk 0:00:03.2]} 36.
Kxe3 {[%clk 0:00:13.1]} 36... Kb6 {[%clk 0:00:03.6]} 37. Ke4 {[%clk 0:00:12.6]}
37... Ka5 {[%clk 0:00:02.9]} 38. Ke3 {[%clk 0:00:12]} 38... Kb6 {[%clk
0:00:03.2]} 39. h4 {[%clk 0:00:10.8]} 39... Kc7 {[%clk 0:00:02.6]} 40. Ke4
{[%clk 0:00:10.6]} 40... Kb6 {[%clk 0:00:01.9]} 41. Ke3 {[%clk 0:00:06.1]} 41...
Kb7 {[%clk 0:00:02.2]} 42. Ke4 {[%clk 0:00:06.2]} 42... Kb6 {[%clk 0:00:02.6]}
43. Kd3 {[%clk 0:00:06.2]} 43... Kb7 {[%clk 0:00:02.6]} 44. Ke4 {[%clk
0:00:05.8]} 44... Ka7 {[%clk 0:00:02.6]} 45. Ke3 {[%clk 0:00:04]} 45... Kb8
{[%clk 0:00:03]} 46. Kd3 {[%clk 0:00:04.9]} 46... Kc8 {[%clk 0:00:03.3]} 47. Kc3
{[%clk 0:00:05.6]} 47... Kb7 {[%clk 0:00:03.3]} 48. Kd3 {[%clk 0:00:06.5]} 48...
Kb6 {[%clk 0:00:03.3]} 49. Ke4 {[%clk 0:00:07.4]} 49... Kc7 {[%clk 0:00:03.7]}
50. Ke3 {[%clk 0:00:08.3]} 50... Kc8 {[%clk 0:00:04.1]} 51. Kf2 {[%clk
0:00:09.1]} 51... Kb8 {[%clk 0:00:04.6]} 52. Ke3 {[%clk 0:00:09.9]} 52... Kb7
{[%clk 0:00:05.1]} 53. Ke4 {[%clk 0:00:10.6]} 1/2-1/2

[Event "Early-Titled-Tuesday-Blitz-March-05-2024"]
[Site "Chess.com"]
[Date "2024.03.05"]
[Round "9"]
[White "baki83"]
[Black "Josetricks"]
[Result "1/2-1/2"]
[WhiteElo "2798"]
[BlackElo "2581"]
[TimeControl "180+1"]
[EndTime "9:47:09 PST"]
[Termination "Game drawn - insufficient material"]

1. e4 {[%clk 0:03:00.9]} 1... g6 {[%clk 0:03:00.9]} 2. d4 {[%clk 0:03:00.7]}
2... Bg7 {[%clk 0:03:01.6]} 3. Nc3 {[%clk 0:03:01.2]} 3... c6 {[%clk 0:03:02.2]}
4. Be3 {[%clk 0:03:00.3]} 4... d5 {[%clk 0:03:02.8]} 5. Nf3 {[%clk 0:02:58.7]}
5... dxe4 {[%clk 0:03:02.9]} 6. Nxe4 {[%clk 0:02:58.6]} 6... Nf6 {[%clk
0:03:03.8]} 7. Bd3 {[%clk 0:02:58.4]} 7... O-O {[%clk 0:03:03.6]} 8. h3 {[%clk
0:02:58.5]} 8... Nbd7 {[%clk 0:03:03.2]} 9. c3 {[%clk 0:02:57.1]} 9... Nxe4
{[%clk 0:03:03.1]} 10. Bxe4 {[%clk 0:02:57.5]} 10... e5 {[%clk 0:03:03.8]} 11.
dxe5 {[%clk 0:02:56.4]} 11... Nxe5 {[%clk 0:03:03.4]} 12. Nxe5 {[%clk
0:02:56.2]} 12... Bxe5 {[%clk 0:03:03.1]} 13. Qxd8 {[%clk 0:02:56.7]} 13... Rxd8
{[%clk 0:03:02.8]} 14. Rd1 {[%clk 0:02:56.7]} 14... Rxd1+ {[%clk 0:03:00.7]} 15.
Kxd1 {[%clk 0:02:56.4]} 15... Be6 {[%clk 0:03:01.4]} 16. Kc2 {[%clk 0:02:56]}
16... a5 {[%clk 0:02:44.5]} 17. a4 {[%clk 0:02:54.3]} 17... f5 {[%clk
0:02:37.3]} 18. Bf3 {[%clk 0:02:51.5]} 18... Kf7 {[%clk 0:02:33.3]} 19. Bb6
{[%clk 0:02:49.3]} 19... Ra6 {[%clk 0:02:27.4]} 20. Bd8 {[%clk 0:02:42.3]} 20...
Ra8 {[%clk 0:02:26.2]} 21. Rd1 {[%clk 0:02:39.5]} 21... Ke8 {[%clk 0:02:22.6]}
22. Bb6 {[%clk 0:02:36.9]} 22... Ra6 {[%clk 0:02:13.6]} 23. Re1 {[%clk
0:02:26.9]} 23... Rxb6 {[%clk 0:02:07.9]} 24. Rxe5 {[%clk 0:02:26]} 24... Kd7
{[%clk 0:02:08.4]} 25. Rxa5 {[%clk 0:02:25.1]} 25... Bb3+ {[%clk 0:01:57.1]} 26.
Kc1 {[%clk 0:02:06.4]} 26... Kc7 {[%clk 0:01:16.4]} 27. Ra8 {[%clk 0:02:03.9]}
27... h5 {[%clk 0:01:14.1]} 28. Ra5 {[%clk 0:01:46.8]} 28... h4 {[%clk
0:01:11.7]} 29. g3 {[%clk 0:01:45.9]} 29... hxg3 {[%clk 0:01:09.3]} 30. fxg3
{[%clk 0:01:46.8]} 30... Bc4 {[%clk 0:01:08.9]} 31. b4 {[%clk 0:01:41.7]} 31...
Ra6 {[%clk 0:01:06.9]} 32. Rxa6 {[%clk 0:01:41.3]} 32... Bxa6 {[%clk 0:01:05.1]}
33. Kd2 {[%clk 0:01:35.8]} 33... Kd6 {[%clk 0:01:05.7]} 34. h4 {[%clk
0:01:31.8]} 34... Ke5 {[%clk 0:01:04]} 35. Ke3 {[%clk 0:01:32.1]} 35... Bc4
{[%clk 0:01:02.1]} 36. a5 {[%clk 0:01:24.3]} 36... Bf1 {[%clk 0:00:59]} 37. Bd1
{[%clk 0:01:18.4]} 37... Kd5 {[%clk 0:00:56.7]} 38. Bb3+ {[%clk 0:01:11.3]}
38... Bc4 {[%clk 0:00:54]} 39. Bd1 {[%clk 0:00:53.5]} 39... Bf1 {[%clk
0:00:51.5]} 40. Kf4 {[%clk 0:00:35.1]} 40... Kc4 {[%clk 0:00:49]} 41. Kg5 {[%clk
0:00:34.9]} 41... Bd3 {[%clk 0:00:45.1]} 42. Bf3 {[%clk 0:00:20.6]} 42... Kxc3
{[%clk 0:00:42.9]} 43. b5 {[%clk 0:00:21.2]} 43... cxb5 {[%clk 0:00:40.2]} 44.
Bxb7 {[%clk 0:00:21.3]} 44... b4 {[%clk 0:00:38.5]} 45. h5 {[%clk 0:00:17.5]}
45... gxh5 {[%clk 0:00:37.5]} 46. a6 {[%clk 0:00:17.3]} 46... b3 {[%clk
0:00:35.8]} 47. a7 {[%clk 0:00:15.1]} 47... b2 {[%clk 0:00:36.3]} 48. a8=Q
{[%clk 0:00:15.5]} 48... b1=Q {[%clk 0:00:36.3]} 49. Qc8+ {[%clk 0:00:15.8]}
49... Kd2 {[%clk 0:00:31.8]} 50. Kxh5 {[%clk 0:00:13.6]} 50... Qd1+ {[%clk
0:00:26.8]} 51. Kh6 {[%clk 0:00:08.5]} 51... Qg4 {[%clk 0:00:21.9]} 52. Qc7
{[%clk 0:00:07.8]} 52... Be4 {[%clk 0:00:19.9]} 53. Ba6 {[%clk 0:00:04.8]} 53...
Ke3 {[%clk 0:00:18.1]} 54. Bc8 {[%clk 0:00:03.9]} 54... Kf3 {[%clk 0:00:15.2]}
55. Qf4+ {[%clk 0:00:03.3]} 55... Qxf4+ {[%clk 0:00:15.5]} 56. gxf4 {[%clk
0:00:04.2]} 56... Kxf4 {[%clk 0:00:16.2]} 57. Bxf5 {[%clk 0:00:04.5]} 1/2-1/2

[Event "Early-Titled-Tuesday-Blitz-March-05-2024"]
[Site "Chess.com"]
[Date "2024.03.05"]
[Round "9"]
[White "carlocapau"]
[Black "Kielinkei"]
[Result "1-0"]
[WhiteElo "2474"]
[BlackElo "2586"]
[TimeControl "180+1"]
[EndTime "9:47:13 PST"]
[Termination "carlocapau won by checkmate"]

1. d4 {[%clk 0:03:00.9]} 1... Nf6 {[%clk 0:02:59.7]} 2. c4 {[%clk 0:02:57.1]}
2... e6 {[%clk 0:03:00]} 3. Nc3 {[%clk 0:02:57]} 3... Bb4 {[%clk 0:03:00.6]} 4.
Qc2 {[%clk 0:02:57.3]} 4... d5 {[%clk 0:02:56.6]} 5. cxd5 {[%clk 0:02:56.8]}
5... exd5 {[%clk 0:02:56.4]} 6. Nf3 {[%clk 0:02:56.7]} 6... O-O {[%clk
0:02:55.9]} 7. Bf4 {[%clk 0:02:56.6]} 7... c6 {[%clk 0:02:53.5]} 8. e3 {[%clk
0:02:56.5]} 8... Re8 {[%clk 0:02:47.7]} 9. Bd3 {[%clk 0:02:55.6]} 9... Nbd7
{[%clk 0:02:43.1]} 10. O-O {[%clk 0:02:53.2]} 10... Nf8 {[%clk 0:02:41.8]} 11.
h3 {[%clk 0:02:51.8]} 11... g6 {[%clk 0:02:38]} 12. a3 {[%clk 0:02:49.1]} 12...
Bd6 {[%clk 0:02:35.1]} 13. Bxd6 {[%clk 0:02:45.9]} 13... Qxd6 {[%clk 0:02:36]}
14. b4 {[%clk 0:02:44.8]} 14... Ne6 {[%clk 0:02:35]} 15. Na4 {[%clk 0:02:39.7]}
15... Ng7 {[%clk 0:02:28.3]} 16. b5 {[%clk 0:02:33.8]} 16... cxb5 {[%clk
0:02:14.1]} 17. Bxb5 {[%clk 0:02:33]} 17... Rd8 {[%clk 0:02:11.4]} 18. Rfc1
{[%clk 0:02:26.6]} 18... a6 {[%clk 0:02:05.1]} 19. Bf1 {[%clk 0:02:22.8]} 19...
Bf5 {[%clk 0:01:52.9]} 20. Qc7 {[%clk 0:02:20.1]} 20... Rab8 {[%clk 0:01:50]}
21. Qxd6 {[%clk 0:02:16.8]} 21... Rxd6 {[%clk 0:01:50]} 22. Ra2 {[%clk
0:02:08.6]} 22... Ne6 {[%clk 0:01:45.6]} 23. Rb2 {[%clk 0:02:05.3]} 23... b5
{[%clk 0:01:36.2]} 24. Nc5 {[%clk 0:01:59.6]} 24... h5 {[%clk 0:01:05.9]} 25. a4
{[%clk 0:01:56.2]} 25... Ne4 {[%clk 0:00:59.1]} 26. Ne5 {[%clk 0:01:34.9]} 26...
N6xc5 {[%clk 0:00:44.4]} 27. dxc5 {[%clk 0:01:33.3]} 27... Re6 {[%clk
0:00:44.3]} 28. Nd7 {[%clk 0:01:28.7]} 28... Rb7 {[%clk 0:00:29.8]} 29. c6
{[%clk 0:01:16.3]} 29... Rc7 {[%clk 0:00:29.7]} 30. axb5 {[%clk 0:01:16.2]}
30... axb5 {[%clk 0:00:30.3]} 31. Bxb5 {[%clk 0:01:15.8]} 31... Nf6 {[%clk
0:00:21.3]} 32. Nxf6+ {[%clk 0:01:03.9]} 32... Rxf6 {[%clk 0:00:21.7]} 33. Ba4
{[%clk 0:01:03.3]} 33... Re6 {[%clk 0:00:17.5]} 34. Rb7 {[%clk 0:00:56.3]} 34...
Ree7 {[%clk 0:00:17.7]} 35. Rxc7 {[%clk 0:00:56.8]} 35... Rxc7 {[%clk
0:00:18.6]} 36. Bb3 {[%clk 0:00:54.2]} 36... Be6 {[%clk 0:00:15.7]} 37. Kf1
{[%clk 0:00:52.8]} 37... Kf8 {[%clk 0:00:16.1]} 38. Ke2 {[%clk 0:00:52.9]} 38...
Ke7 {[%clk 0:00:16.8]} 39. Kd3 {[%clk 0:00:52.7]} 39... Kd6 {[%clk 0:00:17.5]}
40. Kd4 {[%clk 0:00:48.7]} 40... Rxc6 {[%clk 0:00:15.4]} 41. Rxc6+ {[%clk
0:00:48.3]} 41... Kxc6 {[%clk 0:00:16.3]} 42. Ke5 {[%clk 0:00:47.8]} 42... Kc5
{[%clk 0:00:07.6]} 43. f3 {[%clk 0:00:42.4]} 43... Kc6 {[%clk 0:00:07.1]} 44. g4
{[%clk 0:00:41]} 44... hxg4 {[%clk 0:00:06.8]} 45. hxg4 {[%clk 0:00:38.1]} 45...
Kc5 {[%clk 0:00:07.4]} 46. f4 {[%clk 0:00:33.4]} 46... Kc6 {[%clk 0:00:04.8]}
47. f5 {[%clk 0:00:32.9]} 47... gxf5 {[%clk 0:00:05.6]} 48. gxf5 {[%clk
0:00:33.5]} 48... Bc8 {[%clk 0:00:03.8]} 49. Bxd5+ {[%clk 0:00:33.4]} 49... Kd7
{[%clk 0:00:04.3]} 50. Bxf7 {[%clk 0:00:31.3]} 50... Ke7 {[%clk 0:00:04.7]} 51.
Bd5 {[%clk 0:00:30.7]} 51... Ba6 {[%clk 0:00:03.5]} 52. f6+ {[%clk 0:00:30.5]}
52... Kf8 {[%clk 0:00:04.1]} 53. e4 {[%clk 0:00:30.6]} 53... Bc8 {[%clk
0:00:04.4]} 54. Kd6 {[%clk 0:00:29]} 54... Bg4 {[%clk 0:00:02.1]} 55. e5 {[%clk
0:00:29.1]} 55... Bh5 {[%clk 0:00:02.4]} 56. e6 {[%clk 0:00:28.7]} 56... Bf7
{[%clk 0:00:02.5]} 57. e7+ {[%clk 0:00:26.9]} 57... Kg8 {[%clk 0:00:02.3]} 58.
e8=Q+ {[%clk 0:00:27]} 58... Kh7 {[%clk 0:00:02.6]} 59. Qxf7+ {[%clk 0:00:26.3]}
59... Kh8 {[%clk 0:00:03.1]} 60. Qg7# {[%clk 0:00:26.4]} 1-0

[Event "Early-Titled-Tuesday-Blitz-March-05-2024"]
[Site "Chess.com"]
[Date "2024.03.05"]
[Round "9"]
[White "GM4life"]
[Black "Fandorine"]
[Result "0-1"]
[WhiteElo "2520"]
[BlackElo "2920"]
[TimeControl "180+1"]
[EndTime "9:47:14 PST"]
[Termination "Fandorine won on time"]

1. d4 {[%clk 0:03:00.9]} 1... Nf6 {[%clk 0:02:56.1]} 2. Nf3 {[%clk 0:03:01]}
2... g6 {[%clk 0:02:55.4]} 3. c4 {[%clk 0:03:00]} 3... Bg7 {[%clk 0:02:56]} 4.
Nc3 {[%clk 0:03:00.4]} 4... O-O {[%clk 0:02:56.6]} 5. e4 {[%clk 0:03:00.5]} 5...
d6 {[%clk 0:02:57.1]} 6. Be2 {[%clk 0:03:00.8]} 6... e5 {[%clk 0:02:57.2]} 7.
O-O {[%clk 0:03:01.4]} 7... exd4 {[%clk 0:02:51.4]} 8. Nxd4 {[%clk 0:03:01.2]}
8... Re8 {[%clk 0:02:52.3]} 9. f3 {[%clk 0:02:57.8]} 9... c6 {[%clk 0:02:52.7]}
10. Nc2 {[%clk 0:02:44.2]} 10... Na6 {[%clk 0:02:51]} 11. Kh1 {[%clk 0:02:43.4]}
11... h6 {[%clk 0:02:42.3]} 12. Bf4 {[%clk 0:02:42.1]} 12... d5 {[%clk
0:02:31.7]} 13. cxd5 {[%clk 0:02:39.6]} 13... cxd5 {[%clk 0:02:31.2]} 14. exd5
{[%clk 0:02:25.7]} 14... Nh5 {[%clk 0:02:31]} 15. Bd2 {[%clk 0:02:16.2]} 15...
Qh4 {[%clk 0:02:18.7]} 16. Be1 {[%clk 0:02:15.7]} 16... Qg5 {[%clk 0:02:16.2]}
17. Ne4 {[%clk 0:02:06.5]} 17... Qd8 {[%clk 0:02:07.3]} 18. Bc3 {[%clk
0:02:03.1]} 18... Bxc3 {[%clk 0:01:47.8]} 19. bxc3 {[%clk 0:02:01]} 19... Bf5
{[%clk 0:01:26.1]} 20. Bxa6 {[%clk 0:01:35.3]} 20... bxa6 {[%clk 0:01:25.7]} 21.
Qd4 {[%clk 0:01:08.1]} 21... Bxe4 {[%clk 0:01:25.1]} 22. fxe4 {[%clk 0:01:06.7]}
22... Qh4 {[%clk 0:01:25.1]} 23. Qf2 {[%clk 0:00:42.2]} 23... Qxf2 {[%clk
0:01:23.5]} 24. Rxf2 {[%clk 0:00:43.1]} 24... Rxe4 {[%clk 0:01:23.6]} 25. Rd1
{[%clk 0:00:43.7]} 25... Rc4 {[%clk 0:01:17.1]} 26. Rf3 {[%clk 0:00:41.2]} 26...
Rd8 {[%clk 0:01:16.9]} 27. Nb4 {[%clk 0:00:39.7]} 27... a5 {[%clk 0:01:14.6]}
28. Nc2 {[%clk 0:00:37.6]} 28... Rd6 {[%clk 0:01:08.5]} 29. h3 {[%clk
0:00:33.9]} 29... a6 {[%clk 0:01:04.8]} 30. Rdd3 {[%clk 0:00:27.6]} 30... Nf4
{[%clk 0:00:58.2]} 31. Ne3 {[%clk 0:00:20.1]} 31... Nxd3 {[%clk 0:00:43.5]} 32.
Nxc4 {[%clk 0:00:20.4]} 32... Rxd5 {[%clk 0:00:44.2]} 33. Re3 {[%clk 0:00:18.9]}
33... Nf4 {[%clk 0:00:38.6]} 34. Re8+ {[%clk 0:00:18.7]} 34... Kg7 {[%clk
0:00:38.4]} 35. Ra8 {[%clk 0:00:19.3]} 35... Rc5 {[%clk 0:00:35.8]} 36. Nd6
{[%clk 0:00:19.5]} 36... g5 {[%clk 0:00:26.4]} 37. Rxa6 {[%clk 0:00:18.9]} 37...
h5 {[%clk 0:00:25.3]} 38. Ra7 {[%clk 0:00:18.2]} 38... Kg6 {[%clk 0:00:24.5]}
39. Nxf7 {[%clk 0:00:17.4]} 39... Rxc3 {[%clk 0:00:24.8]} 40. Ne5+ {[%clk
0:00:13]} 40... Kf6 {[%clk 0:00:25]} 41. Rxa5 {[%clk 0:00:13.3]} 41... Rc1+
{[%clk 0:00:20.7]} 42. Kh2 {[%clk 0:00:13.4]} 42... Rc2 {[%clk 0:00:21.6]} 43.
Nf3 {[%clk 0:00:08]} 43... Rxg2+ {[%clk 0:00:21]} 44. Kh1 {[%clk 0:00:08.4]}
44... Rg3 {[%clk 0:00:17.3]} 45. Ra6+ {[%clk 0:00:07.2]} 45... Kf5 {[%clk
0:00:17.2]} 46. Ra5+ {[%clk 0:00:07.7]} 46... Kf6 {[%clk 0:00:12.8]} 47. Ra6+
{[%clk 0:00:08.1]} 47... Ke7 {[%clk 0:00:13.5]} 48. Ra7+ {[%clk 0:00:06]} 48...
Kd6 {[%clk 0:00:14.1]} 49. Ra6+ {[%clk 0:00:06.6]} 49... Kc7 {[%clk 0:00:14.4]}
50. Ne5 {[%clk 0:00:05.6]} 50... Rxh3+ {[%clk 0:00:14.4]} 51. Kg1 {[%clk
0:00:06.3]} 51... g4 {[%clk 0:00:14.9]} 52. a4 {[%clk 0:00:04.8]} 52... g3
{[%clk 0:00:11.5]} 53. Nf3 {[%clk 0:00:01.7]} 53... g2 {[%clk 0:00:09]} 54. Ne1
{[%clk 0:00:01.7]} 54... Rh1+ {[%clk 0:00:08.4]} 0-1